fUSD/lending_fUSD_20240222
["ID","MTS","AMOUNT","RATE_DAILY","PERIOD"]
[314819621,1708567872093,-2369.28,0.0003589,2]
[314819622,1708567872102,-500.0,0.0003589,2]
[314819623,1708567872111,-500.0,0.0003589,2]
[314819624,1708567872120,-500.0,0.0003589,2]
[314819625,1708567872130,-500.0,0.0003589,2]
[314819626,1708567872140,-500.0,0.0003589,2]
[314819627,1708567872149,-500.0,0.0003589,2]
[314819628,1708567872159,-708.7,0.0003589,2]
[314819629,1708567872169,-500.0,0.0003589,2]
[314819630,1708567872178,-500.0,0.0003589,2]
[314819631,1708567872188,-4067.05,0.0003589,2]
[314819632,1708567872198,-7400.91,0.0003589,2]
[314819633,1708567872207,-500.0,0.0003589,2]
[314819634,1708567872217,-881.41,0.0003589,2]
[314819635,1708567872226,-846.04,0.0003589,2]
[314819636,1708567872236,-500.0,0.0003589,2]
[314819637,1708567872245,-530.29,0.0003589,2]
[314819638,1708567872254,-509.68813807,0.0003589,2]
[314819639,1708567872263,-500.0,0.0003589,2]
[314819640,1708567872273,-2034.08,0.0003589,2]
[314819641,1708567872282,-500.0,0.0003589,2]
[314819642,1708567872291,-234.14222068,0.0003589,2]
[314819643,1708567872300,-1828.33,0.0003589,2]
[314819644,1708567872309,-500.0,0.0003589,2]
[314819645,1708567872319,-9432.71,0.0003589,2]
[314819646,1708567872329,-500.0,0.0003589,2]
[314819647,1708567872339,-865.52,0.0003589,2]
[314819648,1708567872348,-828.99,0.0003589,2]
[314819649,1708567872358,-500.0,0.0003589,2]
[314819650,1708567872367,-513.20343893,0.0003589,2]
[314819651,1708567872378,-1008.92,0.0003589,2]
[314819652,1708567872387,-500.0,0.0003589,2]
[314819653,1708567872397,-500.0,0.0003589,2]
[314819654,1708567872406,-944.72,0.0003589,2]
[314819655,1708567872416,-521.88,0.0003589,2]
[314819656,1708567872425,-1426.18,0.0003589,2]
[314819657,1708567872435,-1488.99,0.0003589,2]
[314819658,1708567872444,-1416.87,0.0003589,2]
[314819659,1708567872454,-500.0,0.0003589,2]
[314819660,1708567872468,-1250.75,0.0003589,2]
[314819661,1708567872477,-1202.93,0.0003589,2]
[314819662,1708567872486,-500.0,0.0003589,2]
[314819663,1708567872496,-803.94,0.0003589,2]
[314819664,1708567872506,-500.0,0.0003589,2]
[314819665,1708567872515,-5051.95,0.0003589,2]
[314819666,1708567872525,-505.31643425,0.0003589,2]
[314819667,1708567872534,-774.91,0.0003589,2]
[314819668,1708567872544,-559.14,0.0003589,2]
[314819669,1708567872554,-500.0,0.0003589,2]
[314819670,1708567872563,-500.0,0.0003589,2]
[314819671,1708567872572,-911.87,0.0003589,2]
[314819672,1708567872582,-6151.95,0.0003589,2]
[314819673,1708567872591,-500.0,0.0003589,2]
[314819674,1708567872601,-1597.91,0.0003589,2]
[314819675,1708567872610,-1331.83,0.0003589,2]
[314819676,1708567872619,-1703.61,0.0003589,2]
[314819677,1708567872629,-500.0,0.0003589,2]
[314819678,1708567872638,-500.0,0.0003589,2]
[314819679,1708567872647,-500.0,0.0003589,2]
[314819680,1708567872657,-500.0,0.0003589,2]
[314819681,1708567872666,-963.67,0.0003589,2]
[314819682,1708567872676,-734.88,0.0003589,2]
[314819683,1708567872686,-1157.87,0.0003589,2]
[314819684,1708567872695,-500.0,0.0003589,2]
[314819685,1708567872704,-500.0,0.0003589,2]
[314819686,1708567872713,-526.6,0.0003589,2]
[314819687,1708567872723,-680.96,0.0003589,2]
[314819688,1708567872731,-797.35,0.0003589,2]
[314819689,1708567872740,-1732.09,0.0003589,2]
[314819690,1708567872750,-2560.94,0.0003589,2]
[314819691,1708567872759,-500.0,0.0003589,2]
[314819692,1708567872768,-501.95,0.0003589,2]
[314819693,1708567872777,-653.34,0.0003589,2]
[314819694,1708567872786,-1415.3,0.0003589,2]
[314819695,1708567872795,-7186.94,0.0003589,2]
[314819696,1708567872804,-500.0,0.0003589,2]
[314819697,1708567872814,-500.0,0.0003589,2]
[314819698,1708567872823,-2561.4,0.0003589,2]
[314819699,1708567872833,-960.14,0.0003589,2]
[314819700,1708567872843,-500.0,0.0003589,2]
[314819701,1708567872852,-589.96,0.0003589,2]
[314819702,1708567872861,-528.91,0.0003589,2]
[314819703,1708567872871,-1825.02,0.0003589,2]
[314819704,1708567872880,-646.56,0.0003589,2]
[314819705,1708567872889,-5262.43,0.000359,7]
[314819706,1708567872898,-9579.83,0.000359,7]
[314819707,1708567872907,-10105.72,0.000359,7]
[314819708,1708567872917,-150.0,0.00035905,2]
[314819709,1708567872926,-168.68,0.0003591,2]
[314819710,1708567872935,-2000.0,0.00035972,2]
[314819711,1708567872944,-200.0,0.00035972,2]
[314819712,1708567872954,-2000.0,0.00035972,2]
[314819713,1708567872963,-200.0,0.00035972,2]
[314819714,1708567872972,-2000.0,0.00035972,2]
[314819715,1708567872982,-200.0,0.00035972,2]
[314819716,1708567872991,-2000.0,0.00035972,2]
[314819717,1708567873001,-200.0,0.00035972,2]
[314819718,1708567873010,-964.41424818,0.00036,37]
[314819719,1708567873020,-1000.0,0.00036,5]
[314819720,1708567873029,-2173.26464494,0.00036,4]
[314819721,1708567873038,-4952.49233965,0.00036,2]
[314819722,1708567873048,-1000.0,0.00036,7]
[314819723,1708567873057,-1501.08,0.00036,2]
[314819724,1708567873067,-162.0,0.00036,2]
[314819725,1708567873076,-4000.0,0.00036,2]
[314819726,1708567873087,-156.04,0.00036005,2]
[314819727,1708567873097,-150.0,0.00036022,2]
[314819728,1708567873106,-150.0,0.00036026,2]
[314819729,1708567873116,-151.0,0.00036031,7]
[314819730,1708567873125,-801.83339945,0.00036047,2]
[314819731,1708567873134,-150.0,0.00036051,2]
[314819732,1708567873143,-150.0,0.00036062,2]
[314819733,1708567873153,-155.0,0.0003607,2]
[314819734,1708567873162,-150.0,0.00036087,2]
[314819735,1708567873171,-1500.0,0.00036137,2]
[314819736,1708567873181,-150.0,0.0003615,2]
[314819737,1708567873190,-556.55293622,0.00036163,2]
[314819738,1708567873199,-150.0,0.00036163,30]
[314819739,1708567873209,-560.27972685,0.00036164,2]
[314819740,1708567873218,-500.0,0.00036164,2]
[314819741,1708567873227,-500.0,0.00036164,2]
[314819742,1708567873237,-500.0,0.00036164,2]
[314819743,1708567873246,-500.0,0.00036164,2]
[314819744,1708567873255,-502.8188103,0.00036164,2]
[314819745,1708567873264,-500.0,0.00036164,2]
[314819746,1708567873274,-500.0,0.00036164,2]
[314819747,1708567873283,-500.0,0.00036164,2]
[314819748,1708567873293,-500.0,0.00036164,2]
[314819749,1708567873302,-574.7,0.00036164,2]
[314819750,1708567873311,-500.0,0.00036164,2]
[314819751,1708567873320,-500.0,0.00036164,2]
[314819752,1708567873330,-500.0,0.00036164,2]
[314819753,1708567873339,-500.0,0.00036164,2]
[314819754,1708567873348,-500.0,0.00036164,2]
[314819755,1708567873358,-546.58751024,0.00036164,2]
[314819756,1708567873366,-500.0,0.00036164,2]
[314819757,1708567873375,-500.0,0.00036164,2]
[314819758,1708567873385,-500.0,0.00036164,2]
[314819759,1708567873394,-500.0,0.00036164,2]
[314819760,1708567873403,-505.75933564,0.00036164,2]
[314819761,1708567873413,-689.45,0.00036164,2]
[314819762,1708567873422,-500.0,0.00036164,2]
[314819763,1708567873431,-508.18018014,0.00036164,2]
[314819764,1708567873440,-500.0,0.00036164,2]
[314819765,1708567873450,-962.07,0.00036164,2]
[314819766,1708567873462,-500.0,0.00036164,2]
[314819767,1708567873471,-500.0,0.00036164,2]
[314819768,1708567873481,-500.0,0.00036164,2]
[314819769,1708567873490,-500.0,0.00036164,2]
[314819770,1708567873499,-500.0,0.00036164,2]
[314819771,1708567873509,-500.0,0.00036164,2]
[314819772,1708567873518,-500.0,0.00036164,2]
[314819773,1708567873528,-500.0,0.00036164,2]
[314819774,1708567873538,-500.0,0.00036164,2]
[314819775,1708567873547,-500.0,0.00036164,2]
[314819776,1708567873557,-500.0,0.00036164,2]
[314819777,1708567873566,-500.0,0.00036164,2]
[314819778,1708567873575,-500.0,0.00036164,2]
[314819779,1708567873586,-500.0,0.00036164,2]
[314819780,1708567873595,-500.0,0.00036164,2]
[314819781,1708567873604,-500.0,0.00036164,2]
[314819782,1708567873613,-500.0,0.00036164,2]
[314819783,1708567873622,-500.0,0.00036164,2]
[314819784,1708567873632,-500.0,0.00036164,2]
[314819785,1708567873641,-500.0,0.00036164,2]
[314819786,1708567873651,-500.0,0.00036164,2]
[314819787,1708567873660,-500.0,0.00036164,2]
[314819788,1708567873669,-500.0,0.00036164,2]
[314819789,1708567873678,-500.0,0.00036164,2]
[314819790,1708567873688,-500.0,0.00036164,2]
[314819791,1708567873697,-500.0,0.00036164,2]
[314819792,1708567873706,-500.0,0.00036164,2]
[314819793,1708567873715,-500.0,0.00036164,2]
[314819794,1708567873724,-500.0,0.00036164,2]
[314819795,1708567873734,-500.0,0.00036164,2]
[314819796,1708567873743,-500.0,0.00036164,2]
[314819797,1708567873753,-500.0,0.00036164,2]
[314819798,1708567873762,-500.0,0.00036164,2]
[314819799,1708567873772,-531.87,0.00036164,2]
[314819800,1708567873781,-500.0,0.00036164,2]
[314819801,1708567873790,-500.0,0.00036164,2]
[314819802,1708567873799,-500.0,0.00036164,2]
[314819803,1708567873809,-500.0,0.00036164,2]
[314819804,1708567873818,-500.0,0.00036164,2]
[314819805,1708567873828,-500.0,0.00036164,2]
[314819806,1708567873837,-500.0,0.00036164,2]
[314819807,1708567873846,-500.0,0.00036164,2]
[314819808,1708567873856,-500.0,0.00036164,2]
[314819809,1708567873865,-500.0,0.00036164,2]
[314819810,1708567873874,-500.0,0.00036164,2]
[314819811,1708567873888,-500.0,0.00036164,2]
[314819812,1708567873897,-177.24792748,0.00036164,2]
[314819813,1708567873907,-500.0,0.00036164,2]
[314819814,1708567873916,-568.93633082,0.00036164,2]
[314819815,1708567873925,-500.0,0.00036164,2]
[314819816,1708567873935,-500.0,0.00036164,2]
[314819817,1708567873944,-500.0,0.00036164,2]
[314819818,1708567873953,-500.0,0.00036164,2]
[314819819,1708567873962,-500.0,0.00036164,2]
[314819820,1708567873972,-500.0,0.00036164,2]
[314819821,1708567873981,-500.0,0.00036164,2]
[314819822,1708567873990,-500.0,0.00036164,2]
[314819823,1708567874000,-500.0,0.00036164,2]
[314819824,1708567874013,-500.0,0.00036164,2]
[314819825,1708567874022,-500.0,0.00036164,2]
[314819826,1708567874031,-500.0,0.00036164,2]
[314819827,1708567874041,-500.0,0.00036164,2]
[314819828,1708567874050,-500.0,0.00036164,2]
[314819829,1708567874059,-500.0,0.00036164,2]
[314819830,1708567874069,-500.0,0.00036164,2]
[314819831,1708567874078,-500.0,0.00036164,2]
[314819832,1708567874088,-500.0,0.00036164,2]
[314819833,1708567874175,-500.0,0.00036164,2]
[314819834,1708567874185,-500.0,0.00036164,2]
[314819835,1708567874195,-500.0,0.00036164,2]
[314819836,1708567874204,-331.91955788,0.00036164,2]
[314819837,1708567874214,-178.16023714,0.00036164,2]
[314819838,1708567874223,-500.0,0.00036164,2]
[314819839,1708567874232,-490.31178831,0.00036164,2]
[314819840,1708567874242,-500.0,0.00036164,2]
[314819841,1708567874252,-500.0,0.00036164,2]
[314819842,1708567874262,-500.0,0.00036164,2]
[314819843,1708567874272,-500.0,0.00036164,2]
[314819844,1708567874281,-527.94820203,0.00036164,2]
[314819845,1708567874289,-204.69908198,0.00036164,2]
[314819846,1708567874298,-314.19962188,0.00036164,2]
[314819847,1708567874307,-500.0,0.00036164,2]
[314819848,1708567874316,-319.44204108,0.00036164,2]
[314819849,1708567874326,-500.0,0.00036164,2]
[314819850,1708567874336,-551.8502303,0.00036164,2]
[314819851,1708567874345,-500.0,0.00036164,2]
[314819852,1708567874354,-500.0,0.00036164,2]
[314819853,1708567874363,-500.0,0.00036164,2]
[314819854,1708567874373,-500.0,0.00036164,2]
[314819855,1708567874382,-500.0,0.00036164,2]
[314819856,1708567874391,-500.0,0.00036164,2]
[314819857,1708567874400,-500.0,0.00036164,2]
[314819858,1708567874410,-500.0,0.00036164,2]
[314819859,1708567874419,-500.0,0.00036164,2]
[314819860,1708567874428,-500.0,0.00036164,2]
[314819861,1708567874437,-500.0,0.00036164,2]
[314819862,1708567874447,-500.0,0.00036164,2]
[314819863,1708567874460,-500.0,0.00036164,2]
[314819864,1708567874477,-511.74377819,0.00036164,2]
[314819865,1708567874486,-500.0,0.00036164,2]
[314819866,1708567874496,-500.0,0.00036164,2]
[314819867,1708567874505,-500.0,0.00036164,2]
[314819868,1708567874514,-500.0,0.00036164,2]
[314819869,1708567874524,-500.0,0.00036164,2]
[314819870,1708567874533,-500.0,0.00036164,2]
[314819871,1708567874542,-500.0,0.00036164,2]
[314819872,1708567874552,-574.800895,0.00036164,2]
[314819873,1708567874561,-445.16587418,0.00036164,2]
[314819874,1708567874570,-581.55,0.00036164,2]
[314819875,1708567874580,-500.0,0.00036164,2]
[314819876,1708567874589,-500.0,0.00036164,2]
[314819877,1708567874598,-500.0,0.00036164,2]
[314819878,1708567874607,-500.0,0.00036164,2]
[314819879,1708567874617,-500.0,0.00036164,2]
[314819880,1708567874626,-669.7,0.00036164,2]
[314819881,1708567874635,-500.0,0.00036164,2]
[314819882,1708567874644,-500.0,0.00036164,2]
[314819883,1708567874653,-500.0,0.00036164,2]
[314819884,1708567874662,-500.0,0.00036164,2]
[314819885,1708567874672,-500.0,0.00036164,2]
[314819886,1708567874682,-500.0,0.00036164,2]
[314819887,1708567874691,-500.0,0.00036164,2]
[314819888,1708567874701,-500.0,0.00036164,2]
[314819889,1708567874710,-500.0,0.00036164,2]
[314819890,1708567874720,-500.0,0.00036164,2]
[314819891,1708567874730,-500.0,0.00036164,2]
[314819892,1708567874740,-500.0,0.00036164,2]
[314819893,1708567874750,-500.0,0.00036164,2]
[314819894,1708567874760,-500.0,0.00036164,2]
[314819895,1708567874770,-500.0,0.00036164,2]
[314819896,1708567874779,-500.0,0.00036164,2]
[314819897,1708567874788,-1205.8,0.00036164,2]
[314819898,1708567874798,-500.0,0.00036164,2]
[314819899,1708567874807,-500.0,0.00036164,2]
[314819900,1708567874815,-509.48149039,0.00036164,2]
[314819901,1708567874826,-500.0,0.00036164,2]
[314819902,1708567874835,-538.07097092,0.00036164,2]
[314819903,1708567874845,-500.0,0.00036164,2]
[314819904,1708567874854,-500.0,0.00036164,2]
[314819905,1708567874863,-500.0,0.00036164,2]
[314819906,1708567874873,-500.0,0.00036164,2]
[314819907,1708567874882,-500.0,0.00036164,2]
[314819908,1708567874891,-784.63,0.00036164,2]
[314819909,1708567874900,-500.0,0.00036164,2]
[314819910,1708567874910,-500.0,0.00036164,2]
[314819911,1708567874919,-554.28,0.00036164,2]
[314819912,1708567874928,-500.0,0.00036164,2]
[314819913,1708567874937,-500.0,0.00036164,2]
[314819914,1708567874947,-500.0,0.00036164,2]
[314819915,1708567874956,-500.0,0.00036164,2]
[314819916,1708567874965,-500.0,0.00036164,2]
[314819917,1708567874974,-500.0,0.00036164,2]
[314819918,1708567874983,-500.0,0.00036164,2]
[314819919,1708567874993,-500.0,0.00036164,2]
[314819920,1708567875002,-500.0,0.00036164,2]
[314819921,1708567875011,-500.0,0.00036164,2]
[314819922,1708567875020,-500.0,0.00036164,2]
[314819923,1708567875030,-680.42,0.00036164,2]
[314819924,1708567875039,-500.0,0.00036164,2]
[314819925,1708567875048,-500.0,0.00036164,2]
[314819926,1708567875057,-500.0,0.00036164,2]
[314819927,1708567875066,-333.48690546,0.00036164,2]
[314819928,1708567875074,-500.0,0.00036164,2]
[314819929,1708567875085,-500.0,0.00036164,2]
[314819930,1708567875094,-500.0,0.00036164,2]
[314819931,1708567875103,-500.0,0.00036164,2]
[314819932,1708567875113,-563.78087618,0.00036164,2]
[314819933,1708567875122,-500.0,0.00036164,2]
[314819934,1708567875131,-534.74815603,0.00036164,2]
[314819935,1708567875140,-500.0,0.00036164,2]
[314819936,1708567875149,-500.0,0.00036164,2]
[314819937,1708567875158,-500.0,0.00036164,2]
[314819938,1708567875167,-500.0,0.00036164,2]
[314819939,1708567875176,-500.0,0.00036164,2]
[314819940,1708567875185,-500.0,0.00036164,2]
[314819941,1708567875194,-500.0,0.00036164,2]
[314819942,1708567875203,-500.0,0.00036164,2]
[314819943,1708567875213,-500.0,0.00036164,2]
[314819944,1708567875222,-500.0,0.00036164,2]
[314819945,1708567875232,-500.0,0.00036164,2]
[314819946,1708567875241,-500.0,0.00036164,2]
[314819947,1708567875250,-500.0,0.00036164,2]
[314819948,1708567875260,-500.0,0.00036164,2]
[314819949,1708567875269,-500.0,0.00036164,2]
[314819950,1708567875278,-500.0,0.00036164,2]
[314819951,1708567875288,-547.84,0.00036164,2]
[314819952,1708567875297,-500.0,0.00036164,2]
[314819953,1708567875306,-500.0,0.00036164,2]
[314819954,1708567875315,-500.0,0.00036164,2]
[314819955,1708567875324,-500.0,0.00036164,2]
[314819956,1708567875334,-500.0,0.00036164,2]
[314819957,1708567875343,-500.0,0.00036164,2]
[314819958,1708567875353,-500.0,0.00036164,2]
[314819959,1708567875362,-500.0,0.00036164,2]
[314819960,1708567875371,-551.77,0.00036164,2]
[314819961,1708567875380,-500.0,0.00036164,2]
[314819962,1708567875390,-500.77,0.00036164,2]
[314819963,1708567875400,-500.0,0.00036164,2]
[314819964,1708567875409,-500.0,0.00036164,2]
[314819965,1708567875418,-500.0,0.00036164,2]
[314819966,1708567875428,-500.0,0.00036164,2]
[314819967,1708567875437,-500.0,0.00036164,2]
[314819968,1708567875447,-500.0,0.00036164,2]
[314819969,1708567875459,-500.0,0.00036164,2]
[314819970,1708567875469,-1052.38,0.00036164,2]
[314819971,1708567875479,-500.0,0.00036164,2]
[314819972,1708567875489,-500.0,0.00036164,2]
[314819973,1708567875499,-500.0,0.00036164,2]
[314819974,1708567875508,-527.80184712,0.00036164,2]
[314819975,1708567875517,-500.0,0.00036164,2]
[314819976,1708567875527,-960.38,0.00036164,2]
[314819977,1708567875539,-500.0,0.00036164,2]
[314819978,1708567875548,-500.0,0.00036164,2]
[314819979,1708567875558,-500.0,0.00036164,2]
[314819980,1708567875567,-500.0,0.00036164,2]
[314819981,1708567875576,-500.0,0.00036164,2]
[314819982,1708567875586,-902.85,0.00036164,2]
[314819983,1708567875595,-1831.45,0.00036164,2]
[314819984,1708567875605,-500.0,0.00036164,2]
[314819985,1708567875614,-500.0,0.00036164,2]
[314819986,1708567875624,-500.0,0.00036164,2]
[314819987,1708567875633,-500.0,0.00036164,2]
[314819988,1708567875644,-500.0,0.00036164,2]
[314819989,1708567875654,-500.0,0.00036164,2]
[314819990,1708567875664,-500.0,0.00036164,2]
[314819991,1708567875673,-407.861267,0.00036164,2]
[314819992,1708567875683,-500.0,0.00036164,2]
[314819993,1708567875692,-570.75,0.00036164,2]
[314819994,1708567875702,-500.0,0.00036164,2]
[314819995,1708567875711,-500.0,0.00036164,2]
[314819996,1708567875721,-1248.93,0.00036164,2]
[314819997,1708567875731,-509.3579522,0.00036164,2]
[314819998,1708567875741,-500.0,0.00036164,2]
[314819999,1708567875751,-977.51,0.00036164,2]
[314820000,1708567875761,-500.0,0.00036164,2]
[314820001,1708567875770,-500.0,0.00036164,2]
[314820002,1708567875779,-500.0,0.00036164,2]
[314820003,1708567875790,-500.0,0.00036164,2]
[314820004,1708567875799,-500.0,0.00036164,2]
[314820005,1708567875808,-500.0,0.00036164,2]
[314820006,1708567875817,-506.25582875,0.00036164,2]
[314820007,1708567875826,-500.0,0.00036164,2]
[314820008,1708567875837,-901.91,0.00036164,2]
[314820009,1708567875846,-860.22,0.00036164,2]
[314820010,1708567875856,-500.0,0.00036164,2]
[314820011,1708567875866,-500.0,0.00036164,2]
[314820012,1708567875875,-500.0,0.00036164,2]
[314820013,1708567875885,-500.0,0.00036164,2]
[314820014,1708567875895,-738.68,0.00036164,2]
[314820015,1708567875904,-500.0,0.00036164,2]
[314820016,1708567875914,-235.90700591,0.00036164,2]
[314820017,1708567875923,-250.0,0.00036164,2]
[314820018,1708567875933,-500.0,0.00036164,2]
[314820019,1708567875942,-500.0,0.00036164,2]
[314820020,1708567875953,-774.72,0.00036164,2]
[314820021,1708567875962,-500.0,0.00036164,2]
[314820022,1708567875972,-500.0,0.00036164,2]
[314820023,1708567875982,-500.0,0.00036164,2]
[314820024,1708567875992,-500.0,0.00036164,2]
[314820025,1708567876002,-985.31,0.00036164,2]
[314820026,1708567876012,-500.0,0.00036164,2]
[314820027,1708567876021,-500.0,0.00036164,2]
[314820028,1708567876031,-500.0,0.00036164,2]
[314820029,1708567876041,-500.0,0.00036164,2]
[314820030,1708567876051,-500.0,0.00036164,2]
[314820031,1708567876061,-500.0,0.00036164,2]
[314820032,1708567876071,-500.0,0.00036164,2]
[314820033,1708567876081,-500.0,0.00036164,2]
[314820034,1708567876091,-801.33,0.00036164,2]
[314820035,1708567876100,-500.0,0.00036164,2]
[314820036,1708567876110,-500.0,0.00036164,2]
[314820037,1708567876120,-500.0,0.00036164,2]
[314820038,1708567876130,-918.04,0.00036164,2]
[314820039,1708567876140,-500.0,0.00036164,2]
[314820040,1708567876150,-500.0,0.00036164,2]
[314820041,1708567876159,-500.0,0.00036164,2]
[314820042,1708567876168,-863.39,0.00036164,2]
[314820043,1708567876178,-500.0,0.00036164,2]
[314820044,1708567876188,-500.0,0.00036164,2]
[314820045,1708567876197,-500.0,0.00036164,2]
[314820046,1708567876206,-500.0,0.00036164,2]
[314820047,1708567876216,-500.0,0.00036164,2]
[314820048,1708567876225,-500.0,0.00036164,2]
[314820049,1708567876234,-500.0,0.00036164,2]
[314820050,1708567876244,-500.0,0.00036164,2]
[314820051,1708567876254,-500.0,0.00036164,2]
[314820052,1708567876263,-500.0,0.00036164,2]
[314820053,1708567876273,-622.15,0.00036164,2]
[314820054,1708567876282,-500.0,0.00036164,2]
[314820055,1708567876292,-500.0,0.00036164,2]
[314820056,1708567876302,-500.0,0.00036164,2]
[314820057,1708567876311,-500.0,0.00036164,2]
[314820058,1708567876321,-500.0,0.00036164,2]
[314820059,1708567876331,-500.0,0.00036164,2]
[314820060,1708567876341,-463.48406193,0.00036164,2]
[314820061,1708567876350,-594.77,0.00036164,2]
[314820062,1708567876360,-500.0,0.00036164,2]
[314820063,1708567876369,-500.0,0.00036164,2]
[314820064,1708567876379,-500.0,0.00036164,2]
[314820065,1708567876389,-1322.67,0.00036164,2]
[314820066,1708567876399,-500.0,0.00036164,2]
[314820067,1708567876409,-770.76,0.00036164,2]
[314820068,1708567876418,-320.81182658,0.00036164,2]
[314820069,1708567876427,-1539.81,0.00036164,2]
[314820070,1708567876437,-500.0,0.00036164,2]
[314820071,1708567876446,-500.0,0.00036164,2]
[314820072,1708567876458,-507.2433097,0.00036164,2]
[314820073,1708567876469,-500.0,0.00036164,2]
[314820074,1708567876478,-680.73,0.00036164,2]
[314820075,1708567876488,-500.0,0.00036164,2]
[314820076,1708567876498,-500.0,0.00036164,2]
[314820077,1708567876508,-500.0,0.00036164,2]
[314820078,1708567876518,-852.93,0.00036164,2]
[314820079,1708567876527,-500.79,0.00036164,2]
[314820080,1708567876539,-520.65,0.00036164,2]
[314820081,1708567876548,-500.0,0.00036164,2]
[314820082,1708567876558,-558.23,0.00036164,2]
[314820083,1708567876568,-500.0,0.00036164,2]
[314820084,1708567876578,-590.37,0.00036164,2]
[314820085,1708567876590,-1546.74,0.00036164,2]
[314820086,1708567876600,-500.0,0.00036164,2]
[314820087,1708567876610,-500.0,0.00036164,2]
[314820088,1708567876621,-500.0,0.00036164,2]
[314820089,1708567876630,-500.0,0.00036164,2]
[314820090,1708567876640,-823.83,0.00036164,2]
[314820091,1708567876649,-500.0,0.00036164,2]
[314820092,1708567876658,-818.15,0.00036164,2]
[314820093,1708567876668,-500.0,0.00036164,2]
[314820094,1708567876678,-500.0,0.00036164,2]
[314820095,1708567876687,-1293.6,0.00036164,2]
[314820096,1708567876697,-500.0,0.00036164,2]
[314820097,1708567876707,-500.0,0.00036164,2]
[314820098,1708567876716,-500.0,0.00036164,2]
[314820099,1708567876726,-610.76,0.00036164,2]
[314820100,1708567876735,-615.78,0.00036164,2]
[314820101,1708567876745,-501.85,0.00036164,2]
[314820102,1708567876754,-955.64,0.00036164,2]
[314820103,1708567876763,-500.0,0.00036164,2]
[314820104,1708567876774,-500.0,0.00036164,2]
[314820105,1708567876784,-266.51830068,0.00036164,2]
[314820106,1708567876793,-655.35,0.00036164,2]
[314820107,1708567876803,-837.66,0.00036164,2]
[314820108,1708567876813,-708.51,0.00036164,2]
[314820109,1708567876823,-511.11407266,0.00036164,2]
[314820110,1708567876833,-500.0,0.00036164,2]
[314820111,1708567876843,-500.0,0.00036164,2]
[314820112,1708567876853,-500.0,0.00036164,2]
[314820113,1708567876862,-504.27382183,0.00036164,2]
[314820114,1708567876872,-824.29,0.00036164,2]
[314820115,1708567876881,-500.0,0.00036164,2]
[314820116,1708567876891,-513.85676204,0.00036164,2]
[314820117,1708567876901,-500.0,0.00036164,2]
[314820118,1708567876911,-500.0,0.00036164,2]
[314820119,1708567876920,-1284.45,0.00036164,2]
[314820120,1708567876930,-1000.0,0.00036164,7]